bitfinex-derivatives/quotes_SOLF0:USTF0_20250320
["timestamp","ask_amount","ask_price","bid_price","bid_amount"]
[1742429740633,20.60656812,135.56,135.54,7.3762]
[1742429740833,20.60656812,135.56,135.53,0.04719088]
[1742429741230,27.98216812,135.56,135.53,0.04719088]
[1742429741426,20.60656812,135.56,135.53,0.04719088]
[1742429741833,7.3759,135.55,135.53,0.04719088]
[1742429742130,20.60656812,135.56,135.53,0.04719088]
[1742429742832,27.98216812,135.56,135.53,7.42399088]
[1742429743831,20.60656812,135.56,135.53,7.42399088]
[1742429744037,7.3757,135.55,135.53,7.42399088]
[1742429744440,27.93194655,135.54,135.53,0.04719088]
[1742429744740,20.55574655,135.54,135.5,21.19]
[1742429744934,27.93364655,135.51,135.5,21.19]
[1742429745134,20.55574655,135.49,135.46,28.26]
[1742429745340,20.55574655,135.51,135.46,28.26]
[1742429745538,7.3785,135.5,135.47,7.3797]
[1742429746039,7.42587785,135.5,135.47,7.43572293]
[1742429746239,7.42587785,135.5,135.47,0.05602293]
[1742429746439,27.93474655,135.49,135.47,0.05602293]
[1742429746640,20.55574655,135.49,135.47,0.05602293]
[1742429747546,0.04737785,135.5,135.47,0.05602293]
[1742429748945,0.04737785,135.5,135.48,7.3791]
[1742429749138,0.04737785,135.5,135.47,0.05602293]
[1742429749646,0.04737785,135.5,135.48,28.26]
[1742429749845,0.04737785,135.5,135.48,35.6391]
[1742429750146,0.04737785,135.5,135.48,28.26]
[1742429750345,0.04737785,135.5,135.47,7.43582293]
[1742429751343,0.04737785,135.5,135.48,7.3794]
[1742429751546,0.04737785,135.5,135.47,0.05602293]
[1742429752442,7.379,135.49,135.47,0.05602293]
[1742429752837,27.93474655,135.49,135.47,0.05602293]
[1742429753044,20.55574655,135.49,135.47,0.05602293]
[1742429753846,27.93484655,135.49,135.47,0.05602293]
[1742429754241,7.3795,135.48,135.47,0.05602293]
[1742429755344,27.93494655,135.49,135.47,0.05602293]
[1742429755542,20.55574655,135.49,135.47,0.05602293]
[1742429756450,27.93474655,135.49,135.47,0.05602293]
[1742429757145,20.55574655,135.49,135.47,0.05602293]
[1742429757848,0.04737785,135.5,135.47,0.05602293]
[1742429758648,0.04737785,135.5,135.48,7.3795]
[1742429758849,0.04737785,135.5,135.47,0.05602293]
[1742429759150,7.42607785,135.5,135.47,7.43592293]
[1742429759545,0.04737785,135.5,135.47,0.05602293]
[1742429759750,0.04737785,135.5,135.48,7.3794]
[1742429760049,0.04737785,135.5,135.47,0.05602293]
[1742429760346,0.04737785,135.5,135.47,28.31602293]
[1742429761542,7.3794,135.49,135.47,28.31602293]
[1742429761944,7.42617785,135.5,135.47,7.43602293]
[1742429762142,0.04737785,135.5,135.47,0.05602293]
[1742429763151,7.42607785,135.5,135.47,7.43562293]
[1742429764352,7.379,135.49,135.47,7.43562293]
[1742429764749,7.42607785,135.5,135.47,7.43562293]
[1742429764957,20.55574655,135.49,135.43,28.26]
[1742429765454,27.93514655,135.49,135.43,28.26]
[1742429765654,20.55574655,135.49,135.43,35.6419]
[1742429766155,0.04808987,135.47,135.45,0.05584696]
[1742429768155,0.04808987,135.47,135.46,7.3806]
[1742429769751,20.55574655,135.55,135.46,20.55574655]
[1742429769953,7.3752,135.56,135.48,20.55574655]
[1742429770251,329.67307174,135.59,135.53,7.3764]
[1742429770451,326.93597174,135.59,135.54,28.26]
[1742429770648,7.3746,135.57,135.54,28.26]
[1742429770847,7.42836748,135.57,135.54,28.31496313]
[1742429771556,0.05376748,135.57,135.54,28.31496313]
[1742429771753,0.05376748,135.57,135.55,2.9078]
[1742429771953,0.05376748,135.57,135.54,28.31496313]
[1742429772559,7.3752,135.56,135.54,28.31496313]
[1742429772955,7.3757,135.55,135.54,28.31496313]
[1742429773154,7.3757,135.55,135.54,0.05496313]
[1742429776560,27.93104655,135.56,135.54,0.05496313]
[1742429776760,20.55574655,135.56,135.54,0.05496313]
[1742429777156,7.3757,135.55,135.54,0.05496313]
[1742429777363,20.55574655,135.56,135.51,28.26]
[1742429777564,20.55574655,135.53,135.49,28.24]
[1742429778264,48.79574655,135.55,135.49,28.24]
[1742429778563,0.050225,135.53,135.51,0.05056564]
[1742429778968,20.60597155,135.53,135.51,0.05056564]
[1742429779161,7.3773,135.52,135.51,0.05056564]
[1742429779564,20.60597155,135.53,135.47,28.24]
[1742429779757,20.55574655,135.49,135.45,28.24]
[1742429780665,0.04986823,135.48,135.46,7.43519614]
[1742429781165,0.04986823,135.48,135.46,0.05499614]
[1742429782158,7.42936823,135.48,135.46,0.05499614]
[1742429782562,0.04986823,135.48,135.46,0.05499614]
[1742429782770,0.04986823,135.48,135.46,7.43549614]
[1742429782964,0.04986823,135.48,135.46,0.05499614]
[1742429783761,0.04986823,135.48,135.47,7.38]
[1742429784367,20.55574655,135.53,135.5,7.378]
[1742429784761,27.93254655,135.53,135.5,7.378]
[1742429784965,20.55574655,135.53,135.49,35.6187]
[1742429785171,20.55574655,135.53,135.49,28.24]
[1742429785566,0.0493259,135.52,135.5,0.04714663]
[1742429786165,7.4269259,135.52,135.5,0.04714663]
[1742429786366,0.0493259,135.52,135.5,0.04714663]
[1742429786768,0.0493259,135.52,135.5,7.42534663]
[1742429787467,0.0493259,135.52,135.5,0.04714663]
[1742429788174,7.3779,135.51,135.5,0.04714663]
[1742429788474,0.0493259,135.52,135.5,0.04714663]
[1742429788674,7.3779,135.51,135.5,0.04714663]
[1742429788878,0.0493259,135.52,135.5,0.04714663]
[1742429789373,7.3779,135.51,135.5,0.04714663]
[1742429790770,27.93364655,135.51,135.5,0.04714663]
[1742429792478,20.55574655,135.51,135.45,28.24]
[1742429792771,20.55574655,135.49,135.44,28.24]
[1742429792970,7.38,135.48,135.45,7.3811]
[1742429793578,7.42667163,135.48,135.45,7.42958755]
[1742429793871,0.04667163,135.48,135.45,28.28848755]
[1742429794278,7.42647163,135.48,135.45,35.66948755]
[1742429794672,0.04667163,135.48,135.45,28.28848755]
[1742429795272,7.3803,135.47,135.45,28.28848755]
[1742429795476,7.3803,135.47,135.45,0.04848755]
[1742429795671,0.04667163,135.48,135.45,0.04848755]
[1742429795981,7.3806,135.46,135.45,0.04848755]
[1742429798575,0.04667163,135.48,135.45,0.04848755]
[1742429798974,0.04667163,135.48,135.46,7.3805]
[1742429799176,0.04667163,135.48,135.45,0.04848755]
[1742429799375,20.55574655,135.47,135.45,0.04848755]
[1742429799778,0.04667163,135.48,135.45,0.04848755]
[1742429799985,0.04667163,135.48,135.47,7.38]
[1742429800180,0.04667163,135.48,135.46,28.24]
[1742429800574,0.04667163,135.48,135.46,35.6203]
[1742429801175,0.04667163,135.48,135.47,7.38]
[1742429802678,370.7651,135.54,135.5,7.3782]
[1742429802876,26.32084655,135.54,135.5,7.3782]
[1742429803077,26.32084655,135.54,135.49,28.24]
[1742429803470,26.32084655,135.54,135.51,7.3775]
[1742429803471,20.55574655,135.54,135.51,7.3775]
[1742429803680,20.55574655,135.54,135.49,28.24]
[1742429803875,0.04892641,135.54,135.51,0.05490261]
[1742429804079,0.04892641,135.54,135.53,7.3765]
[1742429804477,0.04892641,135.54,135.52,35.6171]
[1742429804672,7.42552641,135.54,135.52,28.24]
[1742429805183,20.60467296,135.54,135.52,28.24]
[1742429805479,7.3768,135.53,135.51,0.05490261]
[1742429806076,7.3773,135.52,135.51,0.05490261]
[1742429806878,7.377,135.53,135.51,0.05490261]
[1742429807178,20.60467296,135.54,135.51,0.05490261]
[1742429807379,27.93304655,135.52,135.51,0.05490261]
[1742429807978,7.3791,135.49,135.46,7.3802]
[1742429808176,20.55574655,135.48,135.37,314.83951102]
[1742429808381,20.55574655,135.48,135.39,2.7637]
[1742429808580,27.93664655,135.46,135.43,7.3821]
[1742429808780,27.93664655,135.46,135.43,35.6221]
[1742429809181,27.98824967,135.46,135.43,35.67090252]
[1742429809381,20.60734967,135.46,135.43,0.04880252]
[1742429810180,7.3815,135.45,135.43,0.04880252]
[1742429810475,20.60734967,135.46,135.43,0.04880252]
[1742429811685,20.60734967,135.46,135.44,7.3817]
[1742429812489,20.60734967,135.46,135.43,7.43080252]
[1742429812893,20.60734967,135.46,135.43,0.04880252]
[1742429813892,20.60734967,135.46,135.44,7.3816]
[1742429814095,20.60734967,135.46,135.43,0.04880252]
[1742429814594,27.98834967,135.46,135.43,0.04880252]
[1742429814792,0.05160312,135.46,135.43,0.04880252]
[1742429815595,0.05160312,135.46,135.45,7.3811]
[1742429815796,0.05160312,135.46,135.45,35.6211]
[1742429817297,0.05160312,135.46,135.45,28.24]
[1742429817798,0.05160312,135.46,135.45,35.6211]
[1742429820103,3.12e-06,135.46,135.45,35.6211]
[1742429820699,3.12e-06,135.46,135.45,38.314]
[1742429823103,3.12e-06,135.46,135.45,35.6211]
[1742429823496,3.12e-06,135.46,135.43,0.04880252]
[1742429824104,7.3811,135.45,135.43,0.04880252]
[1742429824497,3.12e-06,135.46,135.43,0.04880252]
[1742429825104,7.3817,135.44,135.43,0.04880252]
[1742429826106,20.55574655,135.45,135.38,10.2881]
[1742429826303,20.55574655,135.43,135.36,5.47]
[1742429826613,20.55574655,135.43,135.37,28.22]
[1742429826813,20.55574655,135.41,135.37,35.6054]
[1742429827311,7.43488195,135.4,135.38,0.04742879]
[1742429827612,0.05068195,135.4,135.38,28.26742879]
[1742429827801,0.05068195,135.4,135.38,0.04742879]
[1742429829611,0.05068195,135.4,135.38,7.43222879]
[1742429830207,0.05068195,135.4,135.38,0.04742879]
[1742429830609,20.55574655,135.39,135.32,2.74]
[1742429830906,20.55574655,135.39,135.33,28.22]
[1742429831512,20.55574655,135.39,135.36,7.3855]
[1742429831713,20.55574655,135.39,135.33,28.22]
[1742429831914,20.60575859,135.39,135.36,0.05100388]
[1742429832212,27.94124655,135.37,135.36,0.05100388]
[1742429832813,20.55574655,135.37,135.31,28.22]
[1742429833214,7.3868,135.35,135.31,35.6085]
[1742429833412,20.55574655,135.35,135.31,28.22]
[1742429833613,20.55574655,135.33,135.27,2.8314]
[1742429833815,20.55574655,135.33,135.28,28.22]
[1742429834011,0.04960693,135.31,135.29,0.04657926]
[1742429834917,0.04960693,135.31,135.29,7.43607926]
[1742429835118,0.04960693,135.31,135.29,0.04657926]
[1742429835912,0.04960693,135.31,135.3,7.3893]
[1742429836619,278.08014655,135.37,135.34,7.3869]
[1742429836818,23.36014655,135.37,135.33,28.24]
[1742429837613,0.04915809,135.36,135.33,28.24]
[1742429837814,0.04915809,135.36,135.34,0.05422992]
[1742429838314,48.79574655,135.35,135.34,0.05422992]
[1742429838720,48.79574655,135.35,135.29,28.24]
[1742429838918,20.55574655,135.31,135.22,275.27574655]
[1742429839117,48.79574655,135.31,135.23,31.0722]
[1742429839319,48.79574655,135.31,135.23,2.8322]
[1742429839617,27.94594655,135.29,135.24,28.24]
[1742429840022,7.44158433,135.28,135.25,0.05586812]
[1742429840214,0.05098433,135.28,135.25,0.05586812]
[1742429841821,20.60673088,135.28,135.25,0.05586812]
[1742429843322,7.3911,135.27,135.25,0.05586812]
[1742429843719,20.60673088,135.28,135.25,0.05586812]
[1742429844316,7.3911,135.27,135.25,0.05586812]
[1742429844824,28.24,135.27,135.25,0.05586812]
[1742429846620,0.05098433,135.28,135.25,7.44756812]
[1742429846817,0.05098433,135.28,135.25,35.68756812]
[1742429847320,0.05098433,135.28,135.26,7.3914]
[1742429847522,0.05098433,135.28,135.25,28.29586812]
[1742429848113,0.05098433,135.28,135.25,0.05586812]
[1742429848422,7.44158433,135.28,135.25,0.05586812]
[1742429848612,27.99733088,135.28,135.25,0.05586812]
[1742429849016,7.3911,135.27,135.25,0.05586812]
[1742429849517,20.60673088,135.28,135.25,0.05586812]
[1742429849720,20.60673088,135.28,135.18,5.5343]
[1742429849721,20.55574655,135.26,135.18,5.5343]
[1742429849924,20.55574655,135.26,135.2,28.24]
[1742429850523,7.3923,135.25,135.22,7.3933]
[1742429850824,0.0521206,135.25,135.22,0.05104907]
[1742429851020,0.0521206,135.25,135.23,7.3928]
[1742429851326,0.0521206,135.25,135.22,0.05104907]
[1742429851624,0.0521206,135.25,135.24,7.3926]
[1742429854728,0.0521206,135.25,135.23,35.6329]
[1742429855025,0.0521206,135.25,135.23,28.24]
[1742429855425,0.0521206,135.25,135.24,7.3926]
[1742429855923,0.0521206,135.25,135.23,35.6329]
[1742429856322,0.0521206,135.25,135.23,28.24]
[1742429856525,7.4442206,135.25,135.23,28.24]
[1742429856725,0.0521206,135.25,135.23,28.24]
[1742429857429,0.0521206,135.25,135.22,28.29104907]
[1742429857827,0.0521206,135.25,135.22,35.68434907]
[1742429858226,0.0521206,135.25,135.22,0.05104907]
[1742429858829,7.4445206,135.25,135.22,7.44444907]
[1742429860827,7.4445206,135.25,135.21,28.24]
[1742429860828,48.79574655,135.24,135.14,2.7305]
[1742429861031,20.55574655,135.22,135.15,28.24]
[1742429861225,20.55574655,135.22,135.14,2.7305]
[1742429861226,20.55574655,135.22,135.16,28.24]
[1742429861926,0.05149101,135.2,135.16,28.24]
[1742429862727,7.44659101,135.2,135.16,28.24]
[1742429863124,0.05149101,135.2,135.16,28.24]
[1742429863325,20.55574655,135.18,135.11,5.5681]
[1742429863532,20.55574655,135.18,135.12,28.26]
[1742429863830,0.04810591,135.16,135.12,28.26]
[1742429864420,0.04810591,135.16,135.11,2.7585]
[1742429864624,0.04810591,135.16,135.13,28.24]
[1742429864919,7.44550591,135.16,135.13,28.24]
[1742429865125,0.04810591,135.16,135.13,28.24]
[1742429866030,0.04810591,135.16,135.13,35.6383]
[1742429866433,0.04810591,135.16,135.13,28.24]
[1742429867839,0.04810591,135.16,135.13,35.6383]
[1742429868031,0.04810591,135.16,135.13,28.24]
[1742429868823,0.04810591,135.16,135.13,31.0679]
[1742429869032,0.04810591,135.16,135.15,7.3975]
[1742429870522,20.55574655,135.21,135.17,7.3963]
[1742429870727,23.42584655,135.23,135.18,28.26]
[1742429871028,385.55574655,135.25,135.19,28.26]
[1742429871434,7.3927,135.24,135.19,28.26]
[1742429871630,0.0501457,135.23,135.21,0.04717422]
[1742429872026,27.99899225,135.23,135.21,0.04717422]
[1742429872225,20.60589225,135.23,135.21,0.04717422]
[1742429872432,0.0501457,135.23,135.21,0.04717422]
[1742429873132,20.60589225,135.23,135.21,0.04717422]
[1742429873834,7.3937,135.22,135.21,0.04717422]
[1742429875728,27.99919225,135.23,135.21,0.04717422]
[1742429875935,20.60589225,135.23,135.21,0.04717422]
[1742429876934,10.1723,135.22,135.21,0.04717422]
[1742429877330,7.3951,135.2,135.16,7.3967]
[1742429877537,20.55574655,135.21,135.15,28.26]
[1742429878430,0.04949454,135.19,135.15,28.26]
[1742429878936,0.04949454,135.19,135.18,7.3959]
[1742429879235,0.04949454,135.19,135.18,35.6559]
[1742429879833,365.0,135.25,135.24,7.3926]
[1742429880139,119.55762045,135.3,135.24,28.26]
[1742429880140,112.16802045,135.3,135.24,28.26]
[1742429880333,109.40156977,135.3,135.29,7.3899]
[1742429880632,40.65351935,135.3,135.29,35.6299]
[1742429881637,29.45361935,135.3,135.29,35.6299]
[1742429881941,6.36661935,135.3,135.29,35.6299]
[1742429882144,6.36661935,135.3,135.29,28.24]
[1742429882636,0.05239172,135.31,135.29,28.24]
[1742429884844,0.05239172,135.31,135.29,35.6298]
[1742429885040,0.05239172,135.31,135.29,28.24]
[1742429886646,0.05239172,135.31,135.3,28.24]
[1742429886848,0.05239172,135.31,135.28,0.05419519]
[1742429887049,5.42319172,135.31,135.28,0.05419519]
[1742429887444,7.3899,135.29,135.28,0.05419519]
[1742429888250,7.3904,135.28,135.27,28.24]
[1742429888447,61.25353882,135.29,135.21,40.22064451]
[1742429888650,2.6851,135.28,135.21,68.46064451]
[1742429888851,33.01353882,135.26,135.21,68.46064451]
[1742429889247,33.01353882,135.26,135.21,28.24]
[1742429889453,0.05124342,135.25,135.19,28.22]
[1742429889854,7.3943,135.21,135.19,28.22]
[1742429890450,7.3948,135.2,135.17,28.22]
[1742429890645,0.05224094,135.23,135.17,28.22]
[1742429890646,33.06577976,135.23,135.17,28.22]
[1742429890855,2.8022,135.22,135.17,28.22]
[1742429891054,33.06127578,135.21,135.17,28.22]
[1742429891255,35.91147578,135.21,135.17,28.22]
[1742429891451,35.91147578,135.21,135.15,68.44064451]
[1742429891652,35.91147578,135.21,135.15,28.22]
[1742429892053,64.15147578,135.21,135.15,28.22]
[1742429893860,7.3949,135.2,135.15,28.22]
[1742429894452,64.15147578,135.21,135.16,28.24]
[1742429894648,64.15147578,135.21,135.15,28.24]
[1742429894851,7.3962,135.18,135.15,28.24]
[1742429895052,7.3962,135.18,135.13,28.24]
[1742429895458,7.44445159,135.17,135.14,28.24]
[1742429895855,7.44445159,135.17,135.1,262.38]
[1742429896057,7.44445159,135.17,135.11,28.24]
[1742429896451,0.04805159,135.17,135.11,35.6397]
[1742429897160,0.04805159,135.17,135.12,7.3991]
[1742429897361,0.04805159,135.17,135.11,28.24]
[1742429897760,0.04805159,135.17,135.11,35.6394]
[1742429897955,0.04805159,135.17,135.11,28.24]
[1742429898363,0.04805159,135.17,135.1,254.98]
[1742429898565,2.70435159,135.17,135.11,28.24]
[1742429898864,2.70435159,135.17,135.12,7.3988]
[1742429899564,2.70435159,135.17,135.11,35.6395]
[1742429899763,2.70435159,135.17,135.11,28.24]
[1742429900264,2.70435159,135.17,135.14,7.398]
[1742429900561,0.04805159,135.17,135.15,28.24]
[1742429901957,0.04805159,135.17,135.13,28.24]
[1742429902563,0.04805159,135.17,135.13,35.6385]
[1742429902768,0.04805159,135.17,135.13,28.24]
[1742429903362,7.3973,135.16,135.13,28.24]
[1742429903563,0.04805159,135.17,135.13,28.24]
[1742429903966,0.04805159,135.17,135.11,7.3995]
[1742429903967,7.3978,135.15,135.11,7.3995]
[1742429904171,7.3978,135.15,135.12,28.24]
[1742429904370,28.24,135.18,135.12,28.24]
[1742429904566,0.05456334,135.15,135.12,35.6391]
[1742429904772,0.05456334,135.15,135.09,28.24]
[1742429905074,7.3989,135.13,135.09,35.6405]
[1742429905375,7.3989,135.13,135.05,255.16]
[1742429905376,0.05536927,135.13,135.1,28.24]
[1742429906175,0.05536927,135.13,135.11,7.3997]
[1742429906374,0.05536927,135.13,135.1,28.24]
[1742429906676,0.05536927,135.13,135.12,7.3992]
[1742429907475,0.05536927,135.13,135.11,7.3996]
[1742429907675,0.05536927,135.13,135.1,28.24]
[1742429908078,0.05536927,135.13,135.11,7.3993]
[1742429908378,0.05536927,135.13,135.1,28.24]
[1742429908578,0.05536927,135.13,135.12,7.3992]
[1742429909269,0.05536927,135.13,135.0,255.2]
[1742429909472,20.69206613,135.12,135.03,20.69206613]
[1742429909673,0.05401021,135.08,135.04,28.24]
[1742429909977,0.05401021,135.08,135.05,28.24]
[1742429911270,0.05401021,135.08,135.01,20.80396613]
[1742429911469,0.05401021,135.08,135.02,28.24]
[1742429911674,0.05401021,135.08,135.04,7.4035]
[1742429911880,0.05401021,135.08,135.05,28.24]
[1742429912174,7.45571021,135.08,135.05,28.24]
[1742429912378,5.5578,135.15,135.05,28.24]
[1742429912379,20.69206613,135.22,135.07,41.38413226]
[1742429912677,2.7476,135.23,135.14,20.69206613]
[1742429912982,2.7476,135.28,135.2,20.69206613]
[1742429913178,20.69206613,135.27,135.21,28.24]
[1742429913379,23.47756613,135.27,135.22,28.24]
[1742429913678,0.055157,135.25,135.23,28.24]
[1742429913885,0.055157,135.25,135.23,28.28995504]
[1742429915580,0.055157,135.25,135.24,7.3926]
[1742429916075,0.055157,135.25,135.23,28.28995504]
[1742429916076,0.055157,135.25,135.23,35.68285504]
[1742429916277,0.055157,135.25,135.23,28.28995504]
[1742429916478,638.12183638,135.24,135.04,80.92459435]
[1742429916786,33.06091819,135.21,135.08,33.06091819]
[1742429916982,33.06091819,135.21,135.09,286.29888349]
[1742429917177,33.06091819,135.21,135.1,1.35888349]
[1742429917386,33.06091819,135.28,135.14,33.06091819]
[1742429917686,33.06091819,135.28,135.15,31.31164077]
[1742429917881,0.04854259,135.22,135.16,255.2]
[1742429919081,0.04854259,135.22,135.17,29.9]
[1742429919680,7.44224259,135.22,135.17,29.9]
[1742429920287,0.04854259,135.22,135.17,29.9]
[1742429921085,7.44254259,135.22,135.17,29.9]
[1742429921281,0.04854259,135.22,135.17,29.9]
[1742429921680,7.3942,135.21,135.17,29.9]
[1742429921881,0.04854259,135.22,135.17,29.9]
[1742429922983,7.3943,135.21,135.17,29.9]
[1742429923587,7.3949,135.2,135.18,29.78]
[1742429923787,7.3949,135.2,135.19,29.76]
[1742429924683,33.10946078,135.22,135.18,29.72]
[1742429925186,7.44733816,135.21,135.18,29.72]
[1742429925379,0.05283816,135.21,135.16,7.3967]
[1742429925583,0.05283816,135.21,135.17,29.7]
[1742429926387,0.05283816,135.21,135.18,7.3958]
[1742429927089,0.05283816,135.21,135.19,7.395]
[1742429927294,0.05283816,135.21,135.2,29.64]
[1742429928787,7.44703816,135.21,135.2,29.6]
[1742429930597,0.05283816,135.21,135.2,29.54]
[1742429933393,0.05283816,135.21,135.2,36.9348]
[1742429936204,3.816e-05,135.21,135.2,36.9348]
[1742429936801,3.816e-05,135.21,135.2,292.0148]
[1742429937002,33.06091819,135.31,135.2,292.0148]
[1742429937003,33.06091819,135.31,135.27,7.3909]
[1742429937210,33.06091819,135.31,135.26,29.34]
[1742429937704,7.3913,135.27,135.26,29.34]
[1742429939500,7.3915,135.26,135.25,0.05428314]
[1742429940904,7.3912,135.27,135.25,0.05428314]
[1742429941211,0.05672013,135.28,135.25,0.05428314]
[1742429941402,7.3914,135.27,135.25,0.05428314]
[1742429941801,0.05672013,135.28,135.25,0.05428314]
[1742429942202,0.05672013,135.28,135.27,7.3909]
[1742429942402,0.05672013,135.28,135.27,36.6909]
[1742429943207,2.8807,135.34,135.27,29.3]
[1742429943709,7.3868,135.35,135.3,7.3889]
[1742429943906,5.6669,135.37,135.31,29.26]
[1742429944306,0.05375518,135.35,135.33,0.04894537]
[1742429944814,7.3871,135.34,135.33,0.04894537]
[1742429945810,7.44055518,135.35,135.33,0.04894537]
[1742429946009,0.05375518,135.35,135.33,0.04894537]
[1742429946208,0.05375518,135.35,135.34,29.18]
[1742429951011,0.05375518,135.35,135.34,36.5671]
[1742429956724,5.518e-05,135.35,135.34,291.4471]
[1742429957023,8.4272,135.43,135.39,7.3841]
[1742429957213,15.8097,135.43,135.4,28.9]
[1742429958223,15.86201542,135.43,135.4,28.95189179]
[1742429958924,7.3829,135.42,135.4,28.95189179]
[1742429959122,20.61305675,135.42,135.4,0.05189179]
[1742429959318,20.61305675,135.42,135.4,24.514]
[1742429959519,7.3852,135.38,135.34,262.2669]
[1742429959721,7.3852,135.38,135.35,28.84]
[1742429960525,7.43662541,135.38,135.35,28.89098631]
[1742429960825,7.3856,135.37,135.35,28.89098631]
[1742429961421,7.386,135.36,135.35,0.05098631]
[1742429961624,7.386,135.36,135.35,28.85098631]
[1742429962424,0.05142541,135.38,135.35,28.85098631]
[1742429962625,0.05142541,135.38,135.35,36.23708631]
[1742429962928,0.05142541,135.38,135.35,28.85098631]
[1742429963126,0.05142541,135.38,135.35,36.23718631]
[1742429964724,0.05142541,135.38,135.35,28.85098631]
[1742429965325,7.43662541,135.38,135.35,28.85098631]
[1742429966427,0.05142541,135.38,135.35,36.23728631]
[1742429966627,0.05142541,135.38,135.35,28.85098631]
[1742429967128,7.3858,135.37,135.35,28.85098631]
[1742429967329,0.05142541,135.38,135.35,28.85098631]
[1742429967827,7.43672541,135.38,135.35,28.85098631]
[1742429968524,7.3856,135.37,135.35,28.85098631]
[1742429968828,0.05142541,135.38,135.35,28.85098631]
[1742429969128,7.43662541,135.38,135.35,28.85098631]
[1742429969327,7.43662541,135.38,135.35,36.23728631]
[1742429969627,7.43662541,135.38,135.35,28.85098631]
[1742429970328,7.3855,135.37,135.35,28.85098631]
[1742429970528,7.3855,135.37,135.35,0.05098631]
[1742429970726,7.3855,135.37,135.36,28.58]
[1742429972029,0.05142541,135.38,135.36,28.58]
[1742429972930,0.05142541,135.38,135.37,7.3855]
[1742429975425,0.05142541,135.38,135.36,28.58]
[1742429976030,0.05142541,135.38,135.36,35.9658]
[1742429976531,0.05142541,135.38,135.36,28.58]
[1742429979033,0.05142541,135.38,135.36,35.9657]
[1742429979431,0.05142541,135.38,135.37,28.36]
[1742429979826,0.05142541,135.38,135.36,7.3857]
[1742429980032,0.05142541,135.38,135.35,28.39098631]
[1742429981131,7.3857,135.37,135.35,28.39098631]
[1742429982029,7.386,135.36,135.35,28.39098631]
[1742429982636,7.386,135.36,135.35,0.05098631]
[1742429983724,7.3883,135.32,135.28,275.41305675]
[1742429983930,7.3883,135.32,135.29,28.3]
[1742429984235,20.61305675,135.34,135.3,28.32]
[1742429985133,0.05227455,135.33,135.31,0.05304833]
[1742429985636,7.44017455,135.33,135.31,7.44174833]
[1742429985838,0.05227455,135.33,135.31,0.05304833]
[1742429986242,0.05227455,135.33,135.32,7.3882]
[1742429986940,0.05227455,135.33,135.31,0.05304833]
[1742429987539,0.05227455,135.33,135.31,7.44144833]
[1742429988035,7.43997455,135.33,135.31,0.05304833]
[1742429988231,0.05227455,135.33,135.32,28.24]
[1742429988435,7.43997455,135.33,135.32,28.24]
[1742429989244,0.05227455,135.33,135.32,28.24]
[1742429990046,7.43997455,135.33,135.32,28.24]
[1742429991446,0.05227455,135.33,135.32,28.24]
[1742429992351,0.05227455,135.33,135.31,35.68154833]
[1742429992652,28.0453313,135.33,135.22,10.17767712]
[1742429992854,20.61305675,135.29,135.22,10.17767712]
[1742429993451,20.61305675,135.29,135.23,28.3]
[1742429993745,0.05221008,135.27,135.25,0.02626629]
[1742429994551,7.44341008,135.27,135.25,0.02626629]
[1742429995145,7.3915,135.26,135.25,0.02626629]
[1742429996547,20.61305675,135.26,135.15,110.96756174]
[1742429996858,20.61305675,135.23,135.16,38.51767712]
[1742429997051,7.3946,135.21,135.16,38.51767712]
[1742429997553,20.61305675,135.23,135.16,28.34]
[1742429997857,7.3959,135.18,135.16,28.34]
[1742429998352,7.3959,135.18,135.16,28.3]
[1742429998553,7.3955,135.19,135.16,28.3]
[1742429998855,0.04698368,135.2,135.16,28.3]
[1742429999557,7.44178368,135.2,135.16,28.3]
[1742429999957,20.61305675,135.19,135.14,10.17767712]
[1742430000261,20.61305675,135.19,135.14,38.47767712]
[1742430000559,20.61305675,135.19,135.1,26.13595675]
[1742430000860,28.00855675,135.19,135.11,28.3]
[1742430001064,0.05542088,135.16,135.11,35.6993]
[1742430002464,0.05542088,135.16,135.12,7.399]
[1742430002858,0.05542088,135.16,135.11,28.3]
[1742430003057,7.45252088,135.16,135.1,5.5229]
[1742430003357,20.61305675,135.15,135.11,28.26]
[1742430003862,28.01075675,135.15,135.11,28.26]